bitfinex/quotes_SOLUSD_20250112
["timestamp","ask_amount","ask_price","bid_price","bid_amount"]
[1736667010194,8.92971867,186.68,186.62,8.92971867]
[1736667010898,8.92971867,186.67,186.61,8.92971867]
[1736667011081,8.92971867,186.66,186.6,8.92971867]
[1736667011270,8.92971867,186.63,186.57,82.6]
[1736667011466,8.92971867,186.63,186.57,91.52971867]
[1736667012398,8.92971867,186.63,186.58,8.92971867]
[1736667012898,8.92971867,186.64,186.59,8.92971867]
[1736667013499,1.5667,186.65,186.59,8.92971867]
[1736667013804,21.5667,186.65,186.6,8.92971867]
[1736667014587,21.5667,186.65,186.61,8.92971867]
[1736667014805,8.92971867,186.67,186.62,8.92971867]
[1736667014989,90.82971867,186.68,186.62,8.92971867]
[1736667015188,8.92971867,186.67,186.62,8.92971867]
[1736667015604,81.9,186.68,186.63,8.92971867]
[1736667017014,90.82971867,186.68,186.63,8.92971867]
[1736667017307,90.82971867,186.68,186.59,0.80360933]
[1736667017537,90.82971867,186.68,186.62,8.92971867]
[1736667019006,8.92971867,186.68,186.62,8.92971867]
[1736667023714,8.92971867,186.68,186.63,8.92971867]
[1736667026920,7.591,186.7,186.63,8.92971867]
[1736667027122,8.92971867,186.68,186.63,8.92971867]
[1736667028027,8.92971867,186.68,186.58,24.5805324]
[1736667028028,10.49641867,186.7,186.64,8.92971867]
[1736667028325,10.49641867,186.7,186.65,8.92971867]
[1736667029330,8.92971867,186.7,186.65,8.92971867]
[1736667030517,8.92971867,186.71,186.66,8.92971867]
[1736667030816,81.9,186.73,186.69,8.92971867]
[1736667031016,81.9,186.78,186.7,8.92971867]
[1736667031334,8.92971867,186.77,186.71,8.92971867]
[1736667031522,1.6425,186.79,186.71,8.92971867]
[1736667031835,20.0,186.77,186.72,8.92971867]
[1736667032013,28.92971867,186.77,186.72,8.92971867]
[1736667033523,20.0,186.77,186.72,8.92971867]
[1736667033725,8.92971867,186.78,186.73,8.92971867]
[1736667034827,8.92971867,186.78,186.72,8.92971867]
[1736667037443,8.92971867,186.76,186.68,82.6]
[1736667037644,8.92971867,186.74,186.68,91.52971867]
[1736667039041,8.92971867,186.75,186.7,8.92971867]
[1736667039943,8.92971867,186.76,186.7,8.92971867]
[1736667042319,21.6425,186.79,186.72,8.92971867]
[1736667042533,8.92971867,186.78,186.72,8.92971867]
[1736667044452,20.0,186.79,186.72,8.92971867]
[1736667044625,8.92971867,186.74,186.66,1.6391]
[1736667044827,8.92971867,186.73,186.67,8.92971867]
[1736667045020,20.0,186.75,186.67,8.92971867]
[1736667045220,8.92971867,186.73,186.67,8.92971867]
[1736667049453,8.92971867,186.74,186.68,8.92971867]
[1736667050353,20.0,186.75,186.7,8.92971867]
[1736667050554,20.0,186.75,186.71,8.92971867]
[1736667050929,90.82971867,186.78,186.72,8.92971867]
[1736667051548,8.92971867,186.77,186.71,8.92971867]
[1736667051944,20.0,186.78,186.71,8.92971867]
[1736667052253,28.92971867,186.78,186.72,8.92971867]
[1736667052952,8.92971867,186.77,186.71,8.92971867]
[1736667055161,8.92971867,186.76,186.7,8.92971867]
[1736667057341,8.92971867,186.77,186.71,8.92971867]
[1736667058964,8.92971867,186.76,186.7,8.92971867]
[1736667060070,8.92971867,186.76,186.68,23.776884]
[1736667060071,8.92971867,186.75,186.66,1.6391]
[1736667060265,8.92971867,186.74,186.66,1.6391]
[1736667060560,8.92971867,186.73,186.67,8.92971867]
[1736667060935,8.92971867,186.72,186.66,10.56881867]
[1736667061135,8.92971867,186.69,186.62,1.6472]
[1736667061354,8.92971867,186.68,186.63,8.92971867]
[1736667061567,8.92971867,186.68,186.62,10.57691867]
[1736667061861,8.92971867,186.67,186.62,1.6472]
[1736667063164,35.71887468,186.75,186.64,8.92971867]
[1736667063165,8.92971867,186.7,186.64,8.92971867]
[1736667063666,1.5376,186.76,186.62,1.6472]
[1736667063667,1.5376,186.76,186.65,8.92971867]
[1736667063864,8.92971867,186.71,186.66,8.92971867]
[1736667065468,8.92971867,186.7,186.65,8.92971867]
[1736667065687,5.3461668,186.7,186.65,8.92971867]
[1736667065970,8.92971867,186.71,186.65,8.92971867]
[1736667067979,1.5376,186.76,186.67,8.92971867]
[1736667068273,8.92971867,186.73,186.68,8.92971867]
[1736667068586,8.92971867,186.73,186.67,8.92971867]
[1736667071077,8.92971867,186.71,186.65,8.92971867]
[1736667073077,8.92971867,186.7,186.64,8.92971867]
[1736667073271,8.92971867,186.69,186.63,8.92971867]
[1736667073772,8.92971867,186.69,186.62,10.57691867]
[1736667073971,8.92971867,186.68,186.62,10.57691867]
[1736667075875,8.92971867,186.68,186.62,8.92971867]
[1736667081063,8.92971867,186.68,186.63,8.92971867]
[1736667081393,8.92971867,186.69,186.63,8.92971867]
[1736667081684,20.0,186.69,186.64,8.92971867]
[1736667082594,20.0,186.69,186.65,8.92971867]
[1736667082773,20.0,186.68,186.65,8.92971867]
[1736667084291,20.0,186.68,186.64,8.92971867]
[1736667089017,81.9,186.72,186.65,8.92971867]
[1736667089202,20.0,186.69,186.65,8.92971867]
[1736667089412,8.92971867,186.7,186.65,8.92971867]
[1736667094297,1.5376,186.76,186.67,8.92971867]
[1736667094508,1.5376,186.76,186.68,8.92971867]
[1736667094509,8.92971867,186.74,186.68,8.92971867]
[1736667095690,8.92971867,186.75,186.69,8.92971867]
[1736667095890,20.0,186.74,186.69,8.92971867]
[1736667101089,28.92971867,186.74,186.68,8.92971867]
[1736667101701,20.0,186.74,186.69,8.92971867]
[1736667102597,8.92971867,186.76,186.7,8.92971867]
[1736667102803,90.82971867,186.77,186.71,8.92971867]
[1736667104209,90.82971867,186.77,186.67,7.25823423]
[1736667104418,8.92971867,186.76,186.7,8.92971867]
[1736667105927,8.92971867,186.77,186.71,8.92971867]
[1736667107706,1.6103,186.81,186.72,8.92971867]
[1736667107913,8.92971867,186.78,186.72,8.92971867]
[1736667108213,8.92971867,186.77,186.72,8.92971867]
[1736667108413,8.92971867,186.75,186.7,8.92971867]
[1736667110822,8.92971867,186.76,186.71,8.92971867]
[1736667114115,8.92971867,186.77,186.71,8.92971867]
[1736667115721,8.92971867,186.76,186.71,8.92971867]
[1736667116020,8.92971867,186.76,186.7,8.92971867]
[1736667125245,8.92971867,186.77,186.71,8.92971867]
[1736667125410,101.9,186.8,186.72,8.92971867]
[1736667125603,8.92971867,186.78,186.72,8.92971867]
[1736667126433,8.92971867,186.77,186.71,8.92971867]
[1736667127845,8.92971867,186.78,186.72,8.92971867]
[1736667128210,8.92971867,186.77,186.72,8.92971867]
[1736667128412,8.92971867,186.77,186.68,23.776884]
[1736667128707,8.92971867,186.77,186.71,8.92971867]
[1736667131641,101.9,186.8,186.71,10.47751867]
[1736667131839,8.92971867,186.77,186.71,10.47751867]
[1736667133336,8.92971867,186.77,186.72,8.92971867]
[1736667136311,101.9,186.8,186.72,8.92971867]
[1736667136543,8.92971867,186.78,186.72,8.92971867]
[1736667138348,8.92971867,186.77,186.71,10.47751867]
[1736667138643,8.92971867,186.76,186.71,1.5478]
[1736667139038,8.92971867,186.77,186.71,10.47751867]
[1736667140640,8.92971867,186.77,186.71,1.5478]
[1736667140823,8.92971867,186.77,186.71,10.47751867]
[1736667147059,8.92971867,186.76,186.67,6.4549]
[1736667147354,8.92971867,186.75,186.69,8.92971867]
[1736667149555,101.9,186.8,186.7,8.92971867]
[1736667149755,8.92971867,186.76,186.7,8.92971867]
[1736667151961,8.92971867,186.72,186.67,6.4549]
[1736667152256,81.9,186.78,186.69,8.92971867]
[1736667152458,90.82971867,186.78,186.72,8.92971867]
[1736667154877,81.9,186.78,186.71,8.92971867]
[1736667155029,8.92971867,186.77,186.71,8.92971867]
[1736667157562,8.92971867,186.76,186.71,8.92971867]
[1736667158457,8.92971867,186.74,186.68,8.92971867]
[1736667158642,8.92971867,186.72,186.67,6.4549]
[1736667161070,8.92971867,186.72,186.67,15.38461867]
[1736667161442,8.92971867,186.73,186.67,15.38461867]
[1736667161945,8.92971867,186.73,186.68,8.92971867]
[1736667163167,8.92971867,186.73,186.67,15.38461867]
[1736667176484,8.92971867,186.72,186.67,15.38461867]
[1736667180381,8.92971867,186.72,186.67,6.4549]
[1736667180576,8.92971867,186.72,186.67,15.38461867]
[1736667184889,8.92971867,186.72,186.67,6.4549]
[1736667187958,8.92971867,186.73,186.67,15.38461867]
[1736667190771,8.92971867,186.72,186.67,6.4549]
[1736667191606,8.92971867,186.73,186.67,6.4549]
[1736667192099,81.9,186.75,186.67,6.4549]
[1736667192100,28.92971867,186.72,186.67,6.4549]
[1736667196272,20.0,186.72,186.67,15.38461867]
[1736667206209,20.0,186.72,186.67,6.4549]
[1736667208312,20.0,186.72,186.67,15.38461867]
[1736667211219,20.0,186.72,186.66,1.5888]
[1736667211393,8.92971867,186.67,186.63,14.68732293]
[1736667211583,8.92971867,186.67,186.63,8.44152293]
[1736667212210,8.92971867,186.64,186.61,1.606]
[1736667212399,8.92971867,186.64,186.59,23.6170416]
[1736667212607,8.92971867,186.65,186.59,23.6170416]
[1736667213121,8.92971867,186.65,186.59,15.17551867]
[1736667214712,8.92971867,186.65,186.6,8.92971867]
[1736667216832,8.92971867,186.65,186.59,15.17551867]
[1736667218097,8.92971867,186.65,186.6,8.92971867]
[1736667219517,8.92971867,186.65,186.59,8.92971867]
[1736667221423,8.92971867,186.64,186.58,8.92971867]
[1736667222324,8.92971867,186.63,186.57,10.53571867]
[1736667223402,8.92971867,186.64,186.58,8.92971867]
[1736667224792,28.92971867,186.65,186.59,8.92971867]
[1736667225096,8.92971867,186.65,186.59,8.92971867]
[1736667225292,28.92971867,186.65,186.59,8.92971867]
[1736667226612,8.92971867,186.64,186.58,8.92971867]
[1736667232330,28.92971867,186.65,186.59,8.92971867]
[1736667232515,20.0,186.65,186.61,8.92971867]
[1736667232836,20.0,186.65,186.62,8.92971867]
[1736667233719,81.9,186.7,186.63,8.92971867]
[1736667233920,8.92971867,186.68,186.63,8.92971867]
[1736667235012,8.92971867,186.68,186.62,8.92971867]
[1736667235221,28.92971867,186.67,186.61,8.92971867]
[1736667235536,28.92971867,186.67,186.58,106.376884]
[1736667235537,8.92971867,186.64,186.58,8.92971867]
[1736667240344,8.92971867,186.64,186.57,1.606]
[1736667240543,8.92971867,186.62,186.57,10.53571867]
[1736667240737,8.92971867,186.62,186.57,8.92971867]
[1736667241049,8.92971867,186.61,186.55,8.92971867]
[1736667241420,8.92971867,186.59,186.52,84.1871]
[1736667241726,8.92971867,186.59,186.54,8.92971867]
[1736667243218,8.92971867,186.59,186.53,8.92971867]
[1736667243619,8.92971867,186.59,186.54,8.92971867]
[1736667244942,28.92971867,186.6,186.55,8.92971867]
[1736667246326,20.0,186.59,186.56,8.92971867]
[1736667246747,8.92971867,186.62,186.56,8.92971867]
[1736667250439,81.9,186.63,186.57,8.92971867]
[1736667250638,81.9,186.63,186.58,8.92971867]
[1736667250831,90.82971867,186.63,186.58,8.92971867]
[1736667251047,90.82971867,186.63,186.57,8.92971867]
[1736667256958,8.92971867,186.62,186.57,8.92971867]
[1736667260560,8.92971867,186.62,186.56,8.92971867]
[1736667262034,8.92971867,186.61,186.55,8.92971867]
[1736667262343,8.92971867,186.59,186.53,91.52971867]
[1736667264570,8.92971867,186.58,186.52,8.92971867]
[1736667266538,20.0,186.57,186.55,8.92971867]
[1736667267265,81.9,186.6,186.55,8.92971867]
[1736667267856,81.9,186.6,186.56,8.92971867]
[1736667271286,81.9,186.6,186.55,8.92971867]
[1736667272584,90.82971867,186.6,186.55,8.92971867]
[1736667274859,81.9,186.6,186.56,8.92971867]
[1736667275375,81.9,186.6,186.57,8.92971867]
[1736667276174,81.9,186.65,186.58,8.92971867]
[1736667276352,81.9,186.65,186.59,8.92971867]
[1736667276553,20.0,186.62,186.6,8.92971867]
[1736667277857,20.0,186.62,186.59,8.92971867]
[1736667281754,28.92971867,186.64,186.58,8.92971867]
[1736667286970,8.92971867,186.63,186.56,82.6]
[1736667287164,8.92971867,186.61,186.56,91.52971867]
[1736667287377,8.92971867,186.59,186.51,91.04152293]
[1736667287673,8.92971867,186.59,186.54,8.92971867]
[1736667289591,8.92971867,186.58,186.51,82.6]
[1736667289762,8.92971867,186.58,186.52,8.92971867]
[1736667294894,8.92971867,186.58,186.53,8.92971867]
[1736667296502,8.92971867,186.59,186.53,8.92971867]
[1736667300605,90.82971867,186.59,186.53,8.92971867]
[1736667300808,1.5638,186.6,186.49,98.75022293]
[1736667300809,1.5638,186.6,186.55,8.92971867]
[1736667300990,1.5638,186.6,186.56,8.92971867]
[1736667301519,20.0,186.59,186.56,8.92971867]
[1736667302613,1.5638,186.64,186.58,8.92971867]
[1736667302911,1.5638,186.64,186.59,8.92971867]
[1736667307017,10.49351867,186.64,186.59,8.92971867]
[1736667308015,10.49351867,186.64,186.58,8.92971867]
[1736667312201,8.92971867,186.64,186.58,8.92971867]
[1736667325022,8.92971867,186.64,186.59,8.92971867]
[1736667325323,90.82971867,186.65,186.59,8.92971867]
[1736667327523,1.6108,186.68,186.61,8.92971867]
[1736667327524,81.9,186.67,186.61,8.92971867]
[1736667327926,90.82971867,186.67,186.61,8.92971867]
[1736667331246,8.92971867,186.66,186.61,8.92971867]
[1736667331452,8.92971867,186.66,186.6,8.92971867]
[1736667332874,8.92971867,186.66,186.61,8.92971867]
[1736667333150,90.82971867,186.67,186.61,8.92971867]
[1736667333451,8.92971867,186.66,186.61,8.92971867]
[1736667333928,20.0,186.67,186.62,8.92971867]
[1736667334129,20.0,186.66,186.63,8.92971867]
[1736667335449,81.9,186.7,186.63,8.92971867]
[1736667335746,8.92971867,186.69,186.63,8.92971867]
[1736667336148,20.0,186.67,186.64,8.92971867]
[1736667337762,20.0,186.67,186.63,8.92971867]
[1736667337949,20.0,186.67,186.62,8.92971867]
[1736667341453,20.0,186.67,186.63,8.92971867]
[1736667341839,20.0,186.67,186.62,8.92971867]
[1736667347262,28.92971867,186.67,186.61,8.92971867]
[1736667348347,28.92971867,186.67,186.62,8.92971867]
[1736667349047,20.0,186.67,186.62,8.92971867]
[1736667365473,20.0,186.67,186.61,8.92971867]
[1736667371881,20.0,186.67,186.62,8.92971867]
[1736667373778,20.0,186.67,186.6,89.0177]
[1736667373991,8.92971867,186.64,186.6,82.6]
[1736667374167,8.92971867,186.61,186.57,8.44152293]
[1736667374656,8.92971867,186.6,186.57,8.44152293]
[1736667374856,8.92971867,186.59,186.57,8.44152293]
[1736667375076,8.92971867,186.6,186.55,82.6]
[1736667376281,8.92971867,186.6,186.55,91.52971867]
[1736667376686,20.0,186.61,186.58,8.92971867]
[1736667376978,8.92971867,186.64,186.58,8.92971867]
[1736667377489,8.92971867,186.63,186.58,8.92971867]
[1736667377697,28.92971867,186.62,186.57,8.92971867]
[1736667377907,28.92971867,186.62,186.56,8.92971867]
[1736667378461,8.92971867,186.6,186.55,8.92971867]
[1736667380402,8.92971867,186.6,186.53,82.6]
[1736667380602,8.92971867,186.6,186.54,8.92971867]
[1736667381598,8.92971867,186.59,186.53,8.92971867]
[1736667383599,8.92971867,186.6,186.55,8.92971867]
[1736667384005,8.92971867,186.61,186.55,8.92971867]
[1736667385617,8.92971867,186.59,186.54,8.92971867]
[1736667388001,8.92971867,186.6,186.54,8.92971867]
[1736667388372,8.92971867,186.61,186.55,8.92971867]
[1736667394403,8.92971867,186.6,186.54,8.92971867]
[1736667399617,8.92971867,186.6,186.51,23.776884]
[1736667399906,8.92971867,186.6,186.54,8.92971867]
[1736667400117,28.92971867,186.57,186.5,82.6]
[1736667400328,8.92971867,186.56,186.49,6.3149]
[1736667400614,8.92971867,186.56,186.5,8.92971867]
[1736667402486,20.0,186.57,186.48,84.1211]
[1736667402487,8.92971867,186.54,186.48,84.1211]
[1736667402684,8.92971867,186.53,186.48,1.5211]
[1736667403185,8.92971867,186.53,186.47,8.92971867]
[1736667403906,8.92971867,186.53,186.44,223.9086]
[1736667403907,8.92971867,186.54,186.48,8.92971867]
[1736667404414,8.92971867,186.55,186.49,8.92971867]
[1736667405515,8.92971867,186.55,186.45,23.776884]
[1736667405814,8.92971867,186.54,186.48,8.92971867]
[1736667405985,8.92971867,186.52,186.44,6.4086]
[1736667406193,8.92971867,186.51,186.45,8.92971867]
[1736667408418,8.92971867,186.51,186.43,1.5352]
[1736667408726,8.92971867,186.51,186.45,8.92971867]
[1736667408894,90.82971867,186.53,186.47,8.92971867]
[1736667409398,81.9,186.53,186.49,8.92971867]
[1736667409908,81.9,186.53,186.48,8.92971867]
[1736667413201,81.9,186.53,186.49,8.92971867]
[1736667414427,20.0,186.52,186.49,8.92971867]
[1736667416000,20.0,186.53,186.48,8.92971867]
[1736667416531,28.92971867,186.53,186.47,8.92971867]
[1736667417231,20.0,186.53,186.48,8.92971867]
[1736667420231,28.92971867,186.53,186.47,8.92971867]
[1736667420839,20.0,186.53,186.49,8.92971867]
[1736667421022,20.0,186.53,186.5,8.92971867]
[1736667421641,20.0,186.53,186.46,23.776884]
[1736667421938,20.0,186.53,186.5,8.92971867]
[1736667422329,81.9,186.56,186.51,8.92971867]
[1736667422533,8.92971867,186.59,186.53,8.92971867]
[1736667422705,8.92971867,186.59,186.54,8.92971867]
[1736667424425,8.92971867,186.58,186.52,8.92971867]
[1736667424938,28.92971867,186.57,186.52,8.92971867]
[1736667425619,28.92971867,186.57,186.49,84.1473]
[1736667425828,8.92971867,186.54,186.48,8.92971867]
[1736667426135,8.92971867,186.52,186.46,8.92971867]
[1736667426516,8.92971867,186.52,186.47,8.92971867]
[1736667428239,8.92971867,186.53,186.47,8.92971867]
[1736667428446,28.92971867,186.54,186.48,8.92971867]
[1736667430339,20.0,186.54,186.49,8.92971867]
[1736667430846,81.9,186.57,186.52,8.92971867]
[1736667431729,8.92971867,186.58,186.52,8.92971867]
[1736667432340,8.92971867,186.58,186.53,8.92971867]
[1736667434862,20.0,186.57,186.53,8.92971867]
[1736667435027,16.80701867,186.6,186.54,8.92971867]
[1736667436256,8.92971867,186.6,186.54,8.92971867]
[1736667439039,8.92971867,186.6,186.53,8.92971867]
[1736667439360,28.92971867,186.59,186.53,8.92971867]
[1736667445367,8.92971867,186.57,186.49,82.6]
[1736667445548,8.92971867,186.56,186.5,8.92971867]
[1736667454269,8.92971867,186.56,186.49,82.6]
[1736667454570,8.92971867,186.56,186.5,8.92971867]
[1736667457062,8.92971867,186.55,186.49,91.52971867]
[1736667457763,8.92971867,186.54,186.49,82.6]
[1736667460646,28.92971867,186.55,186.49,91.52971867]
[1736667471991,81.9,186.58,186.52,8.92971867]
[1736667472159,20.0,186.56,186.53,8.92971867]
[1736667472688,20.0,186.56,186.5,1.5362]
[1736667472867,20.0,186.56,186.52,8.92971867]
[1736667473392,8.92971867,186.58,186.52,8.92971867]
[1736667476362,8.92971867,186.57,186.51,8.92971867]
[1736667477078,8.92971867,186.56,186.5,10.46591867]
[1736667477393,8.92971867,186.54,186.48,15.44321867]
[1736667477563,8.92971867,186.53,186.47,91.52971867]
[1736667479067,8.92971867,186.52,186.47,82.6]
[1736667480480,8.92971867,186.52,186.47,91.52971867]
[1736667480982,8.92971867,186.53,186.47,91.52971867]
[1736667481596,8.92971867,186.54,186.48,8.92971867]
[1736667481806,28.92971867,186.55,186.49,8.92971867]
[1736667484004,8.92971867,186.56,186.5,8.92971867]
[1736667484882,8.92971867,186.55,186.49,8.92971867]
[1736667485682,8.92971867,186.56,186.5,8.92971867]
[1736667488694,90.82971867,186.57,186.52,8.92971867]
[1736667489007,8.92971867,186.59,186.53,8.92971867]
[1736667489187,20.0,186.56,186.53,8.92971867]
[1736667493309,28.92971867,186.58,186.52,10.49851867]
[1736667495013,8.92971867,186.57,186.52,10.49851867]
[1736667499713,8.92971867,186.57,186.52,1.5688]
[1736667500619,8.92971867,186.55,186.49,8.92971867]
[1736667501317,8.92971867,186.55,186.5,8.92971867]
[1736667501927,8.92971867,186.56,186.5,8.92971867]
[1736667503820,8.92971867,186.56,186.48,90.7483]
[1736667504028,8.92971867,186.56,186.5,8.92971867]
[1736667506323,8.92971867,186.57,186.52,8.92971867]
[1736667509421,8.92971867,186.57,186.51,8.92971867]
[1736667516940,20.0,186.58,186.51,8.92971867]
[1736667517234,8.92971867,186.6,186.53,8.92971867]
[1736667517440,8.92971867,186.61,186.55,8.92971867]
[1736667517807,8.92971867,186.6,186.54,8.92971867]
[1736667518634,28.92971867,186.6,186.54,8.92971867]
[1736667522825,8.92971867,186.59,186.54,8.92971867]
[1736667523048,20.0,186.6,186.55,91.52971867]
[1736667523543,8.92971867,186.61,186.55,91.52971867]
[1736667526040,28.92971867,186.62,186.55,91.52971867]
[1736667526243,8.92971867,186.61,186.55,91.52971867]
[1736667527041,20.0,186.62,186.55,93.05121867]
[1736667527235,8.92971867,186.61,186.55,93.05121867]
[1736667531216,28.92971867,186.62,186.56,8.92971867]
[1736667533341,8.92971867,186.6,186.55,84.1215]
[1736667537051,8.92971867,186.6,186.55,1.5215]
[1736667538333,8.92971867,186.55,186.5,7.8401]
[1736667540968,8.92971867,186.56,186.5,7.8401]
[1736667541872,8.92971867,186.56,186.5,16.76981867]
[1736667543463,8.92971867,186.55,186.5,7.8401]
[1736667545954,8.92971867,186.56,186.5,16.76981867]
[1736667546160,20.0,186.56,186.51,8.92971867]
[1736667547575,81.9,186.59,186.52,8.92971867]
[1736667547741,90.82971867,186.59,186.52,8.92971867]
[1736667548744,90.82971867,186.59,186.53,8.92971867]
[1736667549667,81.9,186.59,186.54,8.92971867]
[1736667549848,8.92971867,186.62,186.56,8.92971867]
[1736667550466,8.92971867,186.61,186.55,8.92971867]
[1736667554273,28.92971867,186.6,186.54,8.92971867]
[1736667555065,8.92971867,186.59,186.54,8.92971867]
[1736667556772,8.92971867,186.59,186.53,8.92971867]
[1736667557977,8.92971867,186.59,186.53,91.52971867]
[1736667559462,8.92971867,186.59,186.54,8.92971867]
[1736667565289,28.92971867,186.6,186.54,8.92971867]
[1736667567663,8.92971867,186.6,186.54,8.92971867]
[1736667572665,8.92971867,186.61,186.55,8.92971867]
[1736667572864,8.92971867,186.62,186.56,1.577]
[1736667577293,8.92971867,186.61,186.56,1.577]
[1736667586406,8.92971867,186.59,186.56,1.577]
[1736667589002,8.92971867,186.59,186.53,91.52971867]
[1736667589177,8.92971867,186.58,186.52,1.6455]
[1736667589496,8.92971867,186.57,186.52,1.6455]
[1736667596389,8.92971867,186.58,186.52,1.6455]
[1736667597413,8.92971867,186.58,186.52,10.57521867]
[1736667603722,8.92971867,186.59,186.52,10.57521867]
[1736667614010,8.92971867,186.59,186.53,8.92971867]
[1736667614530,90.82971867,186.61,186.54,8.92971867]
[1736667615638,90.82971867,186.61,186.55,8.92971867]
[1736667616833,8.92971867,186.6,186.54,8.92971867]
[1736667618157,8.92971867,186.59,186.53,91.52971867]
[1736667619927,8.92971867,186.59,186.53,82.6]
[1736667620229,8.92971867,186.58,186.53,82.6]
[1736667621136,8.92971867,186.57,186.53,82.6]
[1736667623312,8.92971867,186.58,186.53,82.6]
[1736667623511,8.92971867,186.58,186.53,91.52971867]
[1736667625134,81.9,186.62,186.53,91.52971867]
[1736667625313,20.0,186.59,186.53,91.52971867]
[1736667625516,8.92971867,186.58,186.53,91.52971867]
[1736667629137,20.0,186.59,186.53,91.52971867]
[1736667629327,28.92971867,186.59,186.53,91.52971867]
[1736667630619,20.0,186.59,186.53,91.52971867]
[1736667630815,28.92971867,186.59,186.53,91.52971867]
[1736667631553,8.92971867,186.58,186.53,82.6]
[1736667634555,28.92971867,186.59,186.53,91.52971867]
[1736667635239,20.0,186.59,186.54,8.92971867]
[1736667637757,81.9,186.65,186.57,8.92971867]
[1736667637957,8.92971867,186.63,186.57,8.92971867]
[1736667642667,81.9,186.68,186.59,8.92971867]
[1736667642836,81.9,186.68,186.61,8.92971867]
[1736667643037,8.92971867,186.67,186.61,8.92971867]
[1736667647062,8.92971867,186.66,186.61,8.92971867]
[1736667647565,8.92971867,186.66,186.6,8.92971867]
[1736667654945,20.0,186.68,186.6,8.92971867]
[1736667655146,8.92971867,186.66,186.6,8.92971867]
[1736667657373,8.92971867,186.66,186.59,6.3088]
[1736667657544,8.92971867,186.66,186.6,8.92971867]
[1736667657869,8.92971867,186.65,186.6,8.92971867]
[1736667658250,8.92971867,186.66,186.6,8.92971867]
[1736667661780,8.92971867,186.67,186.61,8.92971867]
[1736667662347,8.92971867,186.67,186.59,6.3088]
[1736667662546,8.92971867,186.67,186.61,8.92971867]
[1736667668464,20.0,186.68,186.61,8.92971867]
[1736667668762,8.92971867,186.67,186.61,8.92971867]
[1736667670882,8.92971867,186.66,186.61,8.92971867]
[1736667671070,8.92971867,186.65,186.6,8.92971867]
[1736667671376,20.0,186.68,186.6,8.92971867]
[1736667671552,20.0,186.68,186.61,8.92971867]
[1736667671752,8.92971867,186.66,186.61,8.92971867]
[1736667676556,8.92971867,186.66,186.6,8.92971867]
[1736667677595,81.9,186.71,186.64,8.92971867]
[1736667677795,8.92971867,186.7,186.64,8.92971867]
[1736667679065,8.92971867,186.69,186.63,8.92971867]
[1736667679272,28.92971867,186.68,186.62,10.48021867]
[1736667680957,20.0,186.68,186.63,8.92971867]
[1736667681579,28.92971867,186.68,186.62,10.48021867]
[1736667681774,8.92971867,186.67,186.62,1.5505]
[1736667681953,28.92971867,186.68,186.62,1.5505]
[1736667684489,8.92971867,186.65,186.61,82.6]
[1736667684790,8.92971867,186.64,186.61,82.6]
[1736667685726,8.92971867,186.65,186.61,82.6]
[1736667686504,8.92971867,186.64,186.61,82.6]
[1736667686995,8.92971867,186.64,186.59,6.3088]
[1736667687675,8.92971867,186.64,186.58,10.45621867]
[1736667688794,8.92971867,186.63,186.58,1.5265]
[1736667688994,8.92971867,186.62,186.58,1.5265]
[1736667689495,8.92971867,186.62,186.57,82.6]
[1736667689677,8.92971867,186.61,186.57,82.6]
[1736667690077,8.92971867,186.62,186.57,82.6]
[1736667691594,8.92971867,186.58,186.54,1.5265]
[1736667691765,8.92971867,186.57,186.52,8.92971867]
[1736667691970,8.92971867,186.57,186.51,106.0395416]
[1736667692169,8.92971867,186.57,186.51,97.59801867]
[1736667693307,8.92971867,186.57,186.52,8.92971867]
[1736667693492,8.92971867,186.58,186.52,8.92971867]
[1736667693814,28.92971867,186.59,186.53,8.92971867]
[1736667693978,8.92971867,186.59,186.53,8.92971867]
[1736667700389,8.92971867,186.59,186.51,89.6783]
[1736667700589,8.92971867,186.59,186.53,8.92971867]
[1736667701309,8.92971867,186.6,186.54,8.92971867]
[1736667701711,8.92971867,186.6,186.54,9.93971867]
[1736667706835,20.0,186.61,186.57,8.92971867]
[1736667707001,20.0,186.6,186.57,8.92971867]
[1736667708426,20.0,186.6,186.57,9.93971867]
[1736667709097,8.92971867,186.63,186.57,9.93971867]
[1736667709309,8.92971867,186.62,186.57,9.93971867]
[1736667710031,20.0,186.61,186.57,1.01]
[1736667710233,28.92971867,186.61,186.57,1.01]
[1736667713139,8.92971867,186.6,186.57,1.01]
[1736667713337,20.0,186.61,186.57,9.93971867]
[1736667714004,8.92971867,186.62,186.57,1.01]
[1736667720022,28.92971867,186.63,186.57,9.93971867]
[1736667720530,28.92971867,186.63,186.6,1.01]